Workbook

Sheet NL Premiums
B5: FINANCIAL PERIOD (ΟΙΚΟΝΟΜΙΚΗ ΠΕΡΙΟΔΟΣ) : 01/01/18 - 30/06/18
B6: CURRENCY (ΝΟΜΙΣΜΑ) : EURO (ΕΥΡΩ)
B8: TOTAL GROSS WRITTEN PREMIUMS - NON LIFE | E8: (preliminary results, non audited)
B9: Total gross written premiums before deduction of reinsurance, excluding policy fees and allocations from Cyprus Hire Risk Pool & OSEDA.
B10: Including A&H premiums by Life Companies
B12: ΣΥΝΟΛΟ ΜΙΚΤΩΝ ΕΓΓΕΓΡΑΜΜΕΝΩΝ ΑΣΦΑΛΙΣΤΡΩΝ – ΓΕΝΙΚΟΥ ΚΛΑΔΟΥ (προκαταρκτικά αποτελέσματα μη ελεγμένα)
B13: Σύνολο μικτών εγγεγραμμένων ασφαλίστρων πριν την αφαίρεση της αντασφάλισης, εξαιρουμένων των δικαιωμάτων συμβολαίων και της κατανομής ασφαλίστρων από την Κοινοπραξία και τον ΟΣΕΔΑ.
B14: Συμπεριλαμβανομένων ασφαλίστρων Ατυχημάτων και Υγείας από Εταιρείες Ζωής
J17: Semi Annual 2018 | K17: Semi Annual 2017 | L17: % Change
C18: A&H | D18: MOTOR | E18: MAT | F18: FIRE | G18: LIABILITY | H18: CREDIT | I18: MISC
B19: Allianz Hellas | C19: 28801.09 | D19: 1389075.21 | E19: 3980.88 | F19: 5473795.58 | G19: 321920.12 | H19: 0 | I19: 0 | J19: =SUM(C19:I19) -> 7217572.88 | K19: 7728128.49 | L19: =(J19-K19)/K19 -> -0.0660645861
B20: Altius | C20: 4375506.983 | D20: 1686952.24 | E20: 40112.76 | F20: 2383448.887 | G20: 1256095.303 | H20: 0 | I20: 0 | J20: =SUM(C20:I20) -> 9742116.173 | K20: 9106507.835 | L20: =(J20-K20)/K20 -> 0.06979715496
B21: AIG | C21: 257744 | D21: 3351946 | E21: 363528 | F21: 3517993 | G21: 5314535 | H21: 0 | I21: 154965 | J21: 12960711 | K21: 12301330 | L21: 0.05360241535
B22: Atlantic | C22: 1982304.62 | D22: 5549287.54 | E22: 157364.67 | F22: 3299199.16 | G22: 729234.25 | H22: 10751.4 | I22: 7727 | J22: 11735868.64 | K22: 10719589.96 | L22: 0.09480574199
B23: Commercial General Insurance | C23: 55031.82 | D23: 3091299.17 | E23: 35542.02 | F23: 1209160.12 | G23: 327258.74 | H23: 3586.49 | I23: 32763.75 | J23: 4754642.11 | K23: 4880850.02 | L23: -0.02585777262
B24: Cosmos | C24: 1587000.18 | D24: 5884019.49 | E24: 107061.57 | F24: 1067118.68 | G24: 412978.54 | H24: 0 | I24: 5812 | J24: 9063990.46 | K24: 9084779.78 | L24: -0.002288368073
B25: Ethniki General Insurance | C25: 5332208 | D25: 2617617 | E25: 39413 | F25: 1162140 | G25: 443266 | H25: 0 | I25: 55880 | J25: 9650524 | K25: 9538042 | L25: 0.01179298644
B26: Eurolife | C26: 11426255.56 | D26: 0 | E26: 0 | F26: 0 | G26: 0 | H26: 0 | I26: 0 | J26: 11426255.56 | K26: 8841628.75 | L26: =(J26-K26)/K26 -> 0.2923247382
B27: Eurosure | C27: 339369.1 | D27: 2438996.85 | E27: 13705.27 | F27: 552354.92 | G27: 741608.66 | H27: 0 | I27: 41073 | J27: 4127107.8 | K27: 4593351.96 | L27: -0.1015041225
B28: Gan Direct | C28: 139317 | D28: 5275363 | E28: 768 | F28: 483260 | G28: 6221 | H28: 0 | I28: 0 | J28: 5904929 | K28: 6009341 | L28: -0.0173749501
B29: General Insurance of Cyprus | C29: 817966 | D29: 6692520 | E29: 288814 | F29: 12398484 | G29: 3490582 | H29: 19170 | I29: 1794944 | J29: 25502480 | K29: 24682662 | L29: 0.03321432672
B30: Hellenic Alico | C30: 276383.48 | D30: 0 | E30: 0 | F30: 0 | G30: 0 | H30: 0 | I30: 0 | J30: 276383.48 | K30: 265337.41 | L30: =(J30-K30)/K30 -> 0.04163027746
B31: Hydra | C31: 248777 | D31: 5116799 | E31: 32118 | F31: 800605 | G31: 346046 | H31: 0 | I31: 0 | J31: 6544345 | K31: 6394769 | L31: 0.02339036797
B32: Kentriki | C32: 52833.44 | D32: 1180758.67 | E32: 100930.94 | F32: 496966.21 | G32: 222367.29 | H32: 0 | I32: 15418.47 | J32: 2069275.02 | K32: 1765000 | L32: 0.172393779
B33: CNP Asfalistiki | C33: 466497.07 | D33: 11121023.72 | E33: 287022.36 | F33: 8534449.74 | G33: 3505354.26 | H33: 21163.78 | I33: 339344.5 | J33: 24274855.43 | K33: 24171821.26 | L33: 0.004262573717
B34: CNP Cyprialife | C34: 7318886 | D34: 0 | E34: 0 | F34: 0 | G34: 0 | H34: 0 | I34: 0 | J34: 7318886 | K34: 6644627 | L34: 0.101474319
B35: Lumen | C35: 2575 | D35: 819281 | E35: 1955 | F35: 260097 | G35: 213885 | H35: 0 | I35: 0 | J35: 1297793 | K35: 1235898 | L35: 0.05008099374
B36: Metlife | C36: 11603457.31 | D36: 0 | E36: 0 | F36: 0 | G36: 0 | H36: 0 | I36: 0 | J36: 11603457.31 | K36: 9761614.38 | L36: 0.1886822055
B37: Minerva | C37: 377570 | D37: 4494811 | E37: 12544 | F37: 280587 | G37: 306947 | H37: 0 | I37: 13536 | J37: =SUM(C37:I37) -> 5485995 | K37: 5341657 | L37: 0.02702120335
B38: Pancyprian | C38: 502945.39 | D38: 7539256.14 | E38: 140837.65 | F38: 5986301.69 | G38: 1579593.95 | H38: 0 | I38: 183781.36 | J38: 15932716.18 | K38: 15920761.49 | L38: 0.0007508868221
B39: Prime | C39: 681021.35 | D39: 4695022.61 | E39: 19027.57 | F39: 903220.17 | G39: 317332.49 | H39: 0 | I39: 251268.11 | J39: =SUM(C39:I39) -> 6866892.3 | K39: 7664449.03 | L39: -0.1040592386
B40: Progressive | C40: 11480.75 | D40: 1505190.7 | E40: 19989.61 | F40: 529806.47 | G40: 203684.71 | H40: 20486.3 | I40: 15795 | J40: 2306433.54 | K40: 2282600.35 | L40: 0.01044124522
B41: Royal Crown | C41: 19565 | D41: 2136827 | E41: 108353 | F41: 1509405 | G41: 377855 | H41: 0 | I41: 25052 | J41: 4177057 | K41: 4297568 | L41: -0.0280416738
B42: Trust | C42: 2953212 | D42: 8884051 | E42: 102166 | F42: 3020228 | G42: 2268773 | H42: 0 | I42: 53894 | J42: 17282324 | K42: 15430105 | L42: 0.1200392998
B43: Universal Life | C43: 24212594.97 | D43: 0 | E43: 0 | F43: 0 | G43: 0 | H43: 0 | I43: 0 | J43: 24212594.97 | K43: 21420645.54 | L43: 0.1303391826
B44: Ydrogios | C44: 741267.1 | D44: 3743088.37 | E44: 75759.64 | F44: 1678084.31 | G44: 1014838.56 | H44: 2799.56 | I44: 0 | J44: =SUM(C44:I44) -> 7255837.54 | K44: 6266993 | L44: 0.1577861249
B45: Interamerican Hellenic Insurance | C45: 0 | D45: 1182660.16 | E45: 0 | F45: -47676.27 | G45: 0 | H45: 0 | I45: 0 | J45: =SUM(C45:I45) -> 1134983.89 | K45: 115807.73 | L45: 8.800588355
B46: TOTAL Semi Annual 2018 | C46: =SUM(C19:C45) -> 75810570.21 | D46: 90395845.87 | E46: 1950993.94 | F46: 55499028.67 | G46: 23400376.87 | H46: 77957.53 | I46: 2991254.19 | J46: 250126027.3
B47: TOTAL Semi Annual 2017 | C47: 67044721.05 | D47: 86236566.76 | E47: 1938305.97 | F47: 54828281.18 | G47: 22449006.98 | H47: 38386.86 | I47: 3930597.18 | K47: =SUM(K19:K45) -> 236465866
B49: % Change Semi Annual 2017-2018 | C49: =C46/C47-1 -> 0.1307462992 | D49: 0.04823103779 | E49: 0.006545906682 | F49: 0.01223360412 | G49: 0.04237915264 | H49: 1.030838938 | I49: -0.2389822582 | J49: =J46/K47-1 -> 0.05776800487
B50: % Change Semi Annual 2016-2017 | C50: 0.1039338537 | D50: 0.0236026039 | E50: 0.02917730123 | F50: 0.007337257186 | G50: 0.004840229014 | H50: -0.3990385082 | I50: -0.173653583 | J50: 0.0438250787
B52: Notes:
B53: * Data for preparing these results are based on records of companies representing 96% marketshare of the non-life market.
B63: FINANCIAL PERIOD (ΟΙΚΟΝΟΜΙΚΗ ΠΕΡΙΟΔΟΣ) : 01/01/18 - 30/06/18
B64: CURRENCY (ΝΟΜΙΣΜΑ) : EURO (ΕΥΡΩ)
B66: TOTAL GROSS WRITTEN PREMIUMS - NON LIFE | E66: (preliminary results, non audited)
B67: Total gross written premiums before deduction of reinsurance, excluding policy fees and allocations from Cyprus Hire Risk Pool & OSEDA.
B68: Excluding A&H premiums by Life Companies
B70: ΣΥΝΟΛΟ ΜΙΚΤΩΝ ΕΓΓΕΓΡΑΜΜΕΝΩΝ ΑΣΦΑΛΙΣΤΡΩΝ – ΓΕΝΙΚΟΥ ΚΛΑΔΟΥ (προκαταρκτικά αποτελέσματα μη ελεγμένα)
B71: Σύνολο μικτών εγγεγραμμένων ασφαλίστρων πριν την αφαίρεση της αντασφάλισης, εξαιρουμένων των δικαιωμάτων συμβολαίων και της κατανομής ασφαλίστρων από την Κοινοπραξία και τον ΟΣΕΔΑ.
B72: Μη συμπεριλαμβανομένων ασφαλίστρων Ατυχημάτων και Υγείας από Εταιρείες Ζωής
J75: Semi Annual 2018 | K75: Semi Annual 2017 | L75: % Change
C76: A&H | D76: MOTOR | E76: MAT | F76: FIRE | G76: LIABILITY | H76: CREDIT | I76: MISC | J76: TOTAL | K76: TOTAL
B77: Allianz Hellas | C77: =C19 -> 28801.09 | D77: 1389075.21 | E77: 3980.88 | F77: 5473795.58 | G77: 321920.12 | H77: 0 | I77: 0 | J77: =SUM(C77:I77) -> 7217572.88 | K77: 7728128.49 | L77: =(J77-K77)/K77 -> -0.0660645861
B78: Altius | C78: 4375506.983 | D78: 1686952.24 | E78: 40112.76 | F78: 2383448.887 | G78: 1256095.303 | H78: 0 | I78: 0 | J78: =SUM(C78:I78) -> 9742116.173 | K78: 9106507.835 | L78: =(J78-K78)/K78 -> 0.06979715496
B79: AIG | C79: 257744 | D79: 3351946 | E79: 363528 | F79: 3517993 | G79: 5314535 | H79: 0 | I79: 154965 | J79: 12960711 | K79: 12301330 | L79: =(J79-K79)/K79 -> 0.05360241535
B80: Atlantic | C80: 1982304.62 | D80: 5549287.54 | E80: 157364.67 | F80: 3299199.16 | G80: 729234.25 | H80: 10751.4 | I80: 7727 | J80: 11735868.64 | K80: 10719589.96 | L80: 0.09480574199
B81: Commercial General Insurance | C81: 55031.82 | D81: 3091299.17 | E81: 35542.02 | F81: 1209160.12 | G81: 327258.74 | H81: 3586.49 | I81: 32763.75 | J81: 4754642.11 | K81: 4880850.02 | L81: -0.02585777262
B82: Cosmos | C82: 1587000.18 | D82: 5884019.49 | E82: 107061.57 | F82: 1067118.68 | G82: 412978.54 | H82: 0 | I82: 5812 | J82: 9063990.46 | K82: 9084779.78 | L82: -0.002288368073
B83: Ethniki General Insurance | C83: 5332208 | D83: 2617617 | E83: 39413 | F83: 1162140 | G83: 443266 | H83: 0 | I83: 55880 | J83: 9650524 | K83: 9538042 | L83: 0.01179298644
B84: Eurosure | C84: =C27 -> 339369.1 | D84: 2438996.85 | E84: 13705.27 | F84: 552354.92 | G84: 741608.66 | H84: 0 | I84: 41073 | J84: 4127107.8 | K84: 4593351.96 | L84: -0.1015041225
B85: Gan Direct | C85: 139317 | D85: 5275363 | E85: 768 | F85: 483260 | G85: 6221 | H85: 0 | I85: 0 | J85: 5904929 | K85: 6009341 | L85: -0.0173749501
B86: General Insurance of Cyprus | C86: 817966 | D86: 6692520 | E86: 288814 | F86: 12398484 | G86: 3490582 | H86: 19170 | I86: 1794944 | J86: 25502480 | K86: 24682662 | L86: 0.03321432672
B87: Hydra | C87: =C31 -> 248777 | D87: 5116799 | E87: 32118 | F87: 800605 | G87: 346046 | H87: 0 | J87: 6544345 | K87: 6394769 | L87: 0.02339036797
B88: Kentriki | C88: 52833.44 | D88: 1180758.67 | E88: 100930.94 | F88: 496966.21 | G88: 222367.29 | H88: 0 | I88: =I32 -> 15418.47 | J88: 2069275.02 | K88: 1765000 | L88: 0.172393779
B89: CNP Asfalistiki | C89: 466497.07 | D89: 11121023.72 | E89: 287022.36 | F89: 8534449.74 | G89: 3505354.26 | H89: 21163.78 | I89: =I33 -> 339344.5 | J89: 24274855.43 | K89: 24171821.26 | L89: 0.004262573717
B90: Lumen | C90: =C35 -> 2575 | D90: 819281 | E90: 1955 | F90: 260097 | G90: 213885 | H90: 0 | I90: 0 | J90: 1297793 | K90: 1235898 | L90: 0.05008099374
B91: Minerva | C91: =C37 -> 377570 | D91: 4494811 | E91: 12544 | F91: 280587 | G91: 306947 | H91: 0 | I91: 13536 | J91: 5485995 | K91: 5341657 | L91: 0.02702120335
B92: Pancyprian | C92: 502945.39 | D92: 7539256.14 | E92: 140837.65 | F92: 5986301.69 | G92: 1579593.95 | H92: 0 | I92: 183781.36 | J92: 15932716.18 | K92: 15920761.49 | L92: 0.0007508868221
B93: Prime | C93: 681021.35 | D93: 4695022.61 | E93: 19027.57 | F93: 903220.17 | G93: 317332.49 | H93: 0 | I93: 251268.11 | J93: 6866892.3 | K93: 7664449.03 | L93: -0.1040592386
B94: Progressive | C94: 11480.75 | D94: 1505190.7 | E94: 19989.61 | F94: 529806.47 | G94: 203684.71 | H94: 20486.3 | I94: 15795 | J94: 2306433.54 | K94: 2282600.35 | L94: 0.01044124522
B95: Royal Crown | C95: 19565 | D95: 2136827 | E95: 108353 | F95: 1509405 | G95: 377855 | H95: 0 | I95: 25052 | J95: 4177057 | K95: 4297568 | L95: -0.0280416738
B96: Trust | C96: 2953212 | D96: 8884051 | E96: 102166 | F96: 3020228 | G96: 2268773 | H96: 0 | I96: 53894 | J96: 17282324 | K96: 15430105 | L96: 0.1200392998
B97: Ydrogios | C97: =C44 -> 741267.1 | D97: 3743088.37 | E97: 75759.64 | F97: 1678084.31 | G97: 1014838.56 | H97: 2799.56 | I97: 0 | J97: 7255837.54 | K97: 6266993 | L97: 0.1577861249
B98: Interamerican | C98: 0 | D98: 1182660.16 | E98: 0 | F98: -47676.27 | G98: 0 | H98: 0 | I98: 0 | J98: 1134983.89 | K98: 115807.73 | L98: 8.800588355
B99: TOTAL Semi Annual 2018 | C99: =SUM(C77:C98) -> 20972992.89 | D99: =SUM(D77:D98) -> 90395845.87 | E99: 1950993.94 | F99: 55499028.67 | G99: 23400376.87 | H99: 77957.53 | I99: 2991254.19 | J99: 195288450
B100: TOTAL Semi Annual 2017 | C100: 20110867.97 | D100: 86236566.76 | E100: 1938305.97 | F100: 54828281.18 | G100: 22449006.98 | H100: 38386.86 | I100: 3930597.18 | K100: =SUM(K77:K98) -> 189532012.9
B102: % Change Semi Annual 2017-2018 | C102: =C99/C100-1 -> 0.04286860813 | D102: =D99/D100-1 -> 0.04823103779 | E102: =E99/E100-1 -> 0.006545906682 | F102: 0.01223360412 | G102: 0.04237915264 | H102: 1.030838938 | I102: -0.2389822582 | J102: =J99/K100-1 -> 0.03037184574
B103: % Change Semi Annual 2016-2017 | C103: 0.1216056211 | D103: 0.0236026039 | E103: 0.02917730123 | F103: 0.007337257186 | G103: 0.004840229014 | H103: -0.3990385082 | I103: -0.1735722876 | J103: 0.03219590786
B105: Notes:
B106: * Data for preparing these results are based on records of companies representing 96% marketshare of the non-life market.

Sheet NL Claim Ratios
B7: FINANCIAL PERIOD (ΟΙΚΟΝΟΜΙΚΗ ΠΕΡΙΟΔΟΣ) : 01/01/18 - 30/06/18
B8: CURRENCY (ΝΟΜΙΣΜΑ) : EURO (ΕΥΡΩ)
B10: GROSS CLAIMS RATIO- NON LIFE | E10: (preliminary results, non audited)
B11: Gross claims incurred / Gross premiums earned
B13: ΜΙΚΤΟΣ ΔΕΙΚΤΗΣ ΖΗΜΙΩΝ – ΓΕΝΙΚΟΥ ΚΛΑΔΟΥ (προκαταρκτικά αποτελέσματα μη ελεγμένα)
B14: Μεικτές ζημιές που έχουν επισυμβεί / Μεικτά Δεδουλευμένα Ασφάλιστρα
B17: GROSS CLAIMS INCURED | C17: A&H | D17: MOTOR | E17: MAT | F17: FIRE | G17: LIABILITY | H17: CREDIT | I17: MISC | J17: TOTAL
B18: Semi Annual 2018 | C18: 58385040.71 | D18: 57385960.59 | E18: 213003.3247 | F18: 6045662.984 | G18: 6454797.579 | H18: 1584.049719 | I18: 3795392.874 | J18: =SUM(C18:I18) -> 132281442.1
B19: Semi Annual 2017 | C19: 44299992.93 | D19: 51381054.41 | E19: 332717.0461 | F19: 16802591.71 | G19: 8888815.236 | H19: -111742.4451 | I19: 179854.1767 | J19: =SUM(C19:I19) -> 121773283.1
B21: GROSS PREMIUMS EARNED | C21: A&H | D21: MOTOR | E21: MAT | F21: FIRE | G21: LIABILITY | H21: CREDIT | I21: MISC | J21: TOTAL
B22: Semi Annual 2018 | C22: 72762463.19 | D22: 83293267.74 | E22: 1814878.595 | F22: 51759686.8 | G22: 21041003.23 | H22: 51415.23981 | I22: 2697102.833 | J22: =SUM(C22:I22) -> 233419817.6
B23: Semi Annual 2017 | C23: 63956069.19 | D23: 83166990.55 | E23: 1791131.51 | F23: 52590272.61 | G23: 19773202.61 | H23: 96262.39042 | I23: 3618159.672 | J23: =SUM(C23:I23) -> 224992088.5
B25: GROSS CLAIMS RATIO | C25: A&H | D25: MOTOR | E25: MAT | F25: FIRE | G25: LIABILITY | H25: CREDIT | I25: MISC | J25: TOTAL
B26: Semi Annual 2018 | C26: =C18/C22 -> 0.8024060504 | D26: 0.6889627716 | E26: 0.1173650542 | F26: =F18/F22 -> 0.1168025418 | G26: 0.3067723296 | H26: 0.03080895324 | I26: =I18/I22 -> 1.407211037 | J26: =J18/J22 -> 0.5667104167
B27: Semi Annual 2017 | C27: 0.6926628464 | D27: 0.6178058635 | E27: 0.1857580218 | F27: 0.3194999927 | G27: 0.4495384694 | H27: -1.160811035 | I27: 0.04970874505 | J27: 0.5412336223
B29: Notes:
B30: * Data for preparing these results are based on records of companies representing 96% marketshare of the non-life market.
B43: FINANCIAL PERIOD (ΟΙΚΟΝΟΜΙΚΗ ΠΕΡΙΟΔΟΣ) : 01/01/18 - 30/06/18
B44: CURRENCY (ΝΟΜΙΣΜΑ) : EURO (ΕΥΡΩ)
B46: NET CLAIMS RATIO- NON LIFE | E46: (preliminary results, non audited)
B47: Net claims incurred / Net premiums earned
B49: ΚΑΘΑΡΟΣ ΔΕΙΚΤΗΣ ΖΗΜΙΩΝ – ΓΕΝΙΚΟΥ ΚΛΑΔΟΥ (προκαταρκτικά αποτελέσματα μη ελεγμένα)
B50: Καθαρές ζημιές που έχουν επισυμβεί / Καθαρά Δεδουλευμένα Ασφάλιστρα
B53: NET CLAIMS INCURED | C53: A&H | D53: MOTOR | E53: MAT | F53: FIRE | G53: LIABILITY | H53: CREDIT | I53: MISC | J53: TOTAL
B54: Semi Annual 2018 | C54: 37891946.66 | D54: 55595139.86 | E54: 215801.0347 | F54: 5529575.284 | G54: 5432347.885 | H54: 1163.319719 | I54: 68477.11351 | J54: =SUM(C54:I54) -> 104734451.2
B55: Semi Annual 2017 | C55: 27624042.49 | D55: 49943199.18 | E55: 241558.3061 | F55: 11337165.11 | G55: 6381466.096 | H55: -21618.23509 | I55: 58658.25668 | J55: =SUM(C55:I55) -> 95564471.21
B57: NET PREMIUMS EARNED | C57: A&H | D57: MOTOR | E57: MAT | F57: FIRE | G57: LIABILITY | H57: CREDIT | I57: MISC | J57: TOTAL
B58: Semi Annual 2018 | C58: 45851765.5 | D58: 77860828.57 | E58: 2650753.442 | F58: 19739536.23 | G58: 16077271.48 | H58: 31584.05939 | I58: 616523.6205 | J58: =SUM(C58:I58) -> 162828262.9
B59: Semi Annual 2017 | C59: 40728830.29 | D59: 76907742.2 | E59: 997391.0247 | F59: 23727021.24 | G59: 15089994.48 | H59: 32106.89958 | I59: 599974.7232 | J59: =SUM(C59:I59) -> 158083060.9
B61: NET CLAIMS RATIO | C61: A&H | D61: MOTOR | E61: MAT | F61: FIRE | G61: LIABILITY | H61: CREDIT | I61: MISC | J61: TOTAL
B62: Semi Annual 2018 | C62: =C54/C58 -> 0.8264010393 | D62: =D54/D58 -> 0.7140322147 | E62: 0.08141120605 | F62: 0.2801269098 | G62: 0.3378899145 | H62: 0.0368324953 | I62: =I54/I58 -> 0.1110697323 | J62: =J54/J58 -> 0.6432203433
B63: Semi Annual 2017 | C63: 0.678242962 | D63: 0.6493910463 | E63: 0.2421901743 | F63: 0.477816621 | G63: 0.4228938655 | H63: -0.673320544 | I63: 0.09776787991 | J63: =J55/J59 -> 0.6045206279
B65: Note
B66: * Data for preparing these results are based on records of companies representing 96% marketshare of the non-life market.

Sheet NL Expense Ratios
B7: FINANCIAL PERIOD (ΟΙΚΟΝΟΜΙΚΗ ΠΕΡΙΟΔΟΣ) : 01/01/18 - 30/06/18
B8: CURRENCY (ΝΟΜΙΣΜΑ) : EURO (ΕΥΡΩ)
B10: EXPENSES, COMMISSIONS PAID & COMMISIONS RECEIVED | G10: (preliminary results, non audited)
B12: ΕΞΟΔΑ, ΠΡΟΜΗΘΕΙΕΣ ΕΙΣΠΡΑΚΤΕΕΣ & ΠΡΟΜΗΘΕΙΕΣ ΠΛΗΡΩΤΕΕΣ (προκαταρκτικά αποτελέσματα μη ελεγμένα)
B16: Maintainance/Renewal Expenses | C16: A&H | D16: MOTOR | E16: MAT | F16: FIRE | G16: LIABILITY | H16: CREDIT | I16: MISC | J16: TOTAL
B17: Semi Annual 2018 | C17: 4837415.275 | D17: 9686487.527 | E17: 219655.9348 | F17: 4021517.589 | G17: 2079404.301 | H17: 20573.54222 | I17: 157496.9428 | J17: =SUM(C17:I17) -> 21022551.11
B18: Semi Annual 2017 | C18: 3974090.308 | D18: 8489452.688 | E18: 230254.9545 | F18: 3976195.856 | G18: 2135684.6 | H18: 7557.643784 | I18: 112919.662 | J18: =SUM(C18:I18) -> 18926155.71
B20: Commissions & other Acq. expenses | C20: A&H | D20: MOTOR | E20: MAT | F20: FIRE | G20: LIABILITY | H20: CREDIT | I20: MISC | J20: TOTAL
B21: Semi Annual 2018 | C21: 11117709.31 | D21: 22151824.52 | E21: 366631.345 | F21: 12615948.9 | G21: 4010440.16 | H21: 16726.71688 | I21: 1070617.35 | J21: =SUM(C21:I21) -> 51349898.3
B22: Semi Annual 2017 | C22: 8431918.714 | D22: 20592598.35 | E22: 425267.1726 | F22: 12730435.63 | G22: 3892273.715 | H22: 14534.20443 | I22: 921419.0562 | J22: =SUM(C22:I22) -> 47008446.84
B24: Reins. Commissions & Profit Commissions | C24: A&H | D24: MOTOR | E24: MAT | F24: FIRE | G24: LIABILITY | H24: CREDIT | I24: MISC | J24: TOTAL
B25: Semi Annual 2018 | C25: 5253427.996 | D25: -59272.9 | E25: 274036.5947 | F25: 7652145.869 | G25: 952587.05 | H25: 12549.03 | I25: 290806.927 | J25: =SUM(C25:I25) -> 14376280.57
B26: Semi Annual 2017 | C26: 4561178.255 | D26: 108511.1904 | E26: 242673.7986 | F26: 7276088.658 | G26: 1166888.404 | H26: 11489.03 | I26: 276927.3862 | J26: =SUM(C26:I26) -> 13643756.72
B29: GROSS PREMIUMS EARNED | C29: A&H | D29: MOTOR | E29: MAT | F29: FIRE | G29: LIABILITY | H29: CREDIT | I29: MISC | J29: TOTAL
B30: Semi Annual 2018 | C30: 72762463.19 | D30: 83293267.74 | E30: 1814878.595 | F30: 51759686.8 | G30: 21041003.23 | H30: 51415.23981 | I30: 2697102.833 | J30: =SUM(C30:I30) -> 233419817.6
B31: Semi Annual 2017 | C31: 63956069.19 | D31: 83166990.55 | E31: 1791131.51 | F31: 52590272.61 | G31: 19773202.61 | H31: 96262.39042 | I31: 3618159.672 | J31: =SUM(C31:I31) -> 224992088.5
B33: NET PREMIUMS EARNED | C33: A&H | D33: MOTOR | E33: MAT | F33: FIRE | G33: LIABILITY | H33: CREDIT | I33: MISC | J33: TOTAL
B34: Semi Annual 2018 | C34: 45851765.5 | D34: 77860828.57 | E34: 2650753.442 | F34: 19739536.23 | G34: 16077271.48 | H34: 31584.05939 | I34: 616523.6205 | J34: =SUM(C34:I34) -> 162828262.9
B35: Semi Annual 2017 | C35: 40728830.29 | D35: 76907742.2 | E35: 997391.0247 | F35: 23727021.24 | G35: 15089994.48 | H35: 32106.89958 | I35: 599974.7232 | J35: =SUM(C35:I35) -> 158083060.9
B38: GROSS Expense Ratio | C38: A&H | D38: MOTOR | E38: MAT | F38: FIRE | G38: LIABILITY | H38: CREDIT | I38: MISC | J38: TOTAL
B39: Semi Annual 2018 | C39: =C17/C30 -> 0.06648229132 | D39: =D17/D30 -> 0.1162937629 | E39: 0.1210306493 | F39: 0.07769594134 | G39: 0.09882629063 | H39: 0.4001448265 | I39: 0.05839486018 | J39: 0.09006326594
B40: Semi Annual 2017 | C40: =C18/C31 -> 0.06213781364 | D40: =D18/D31 -> 0.1020771899 | E40: 0.1285527909 | F40: 0.07560705923 | G40: 0.1080090384 | H40: 0.07851086755 | I40: 0.03120914282 | J40: 0.08411920542
B41: Maintenance & Renewal Expenses / Gross Earned Premiums
B43: GROSS Acquisition Cost Ratio | C43: A&H | D43: MOTOR | E43: MAT | F43: FIRE | G43: LIABILITY | H43: CREDIT | I43: MISC | J43: TOTAL
B44: Semi Annual 2018 | C44: =C21/C30 -> 0.1527945705 | D44: 0.2659497595 | E44: 0.2020142537 | F44: 0.2437408276 | G44: 0.1906011855 | H44: 0.3253260501 | I44: 0.3969508824 | J44: 0.2199894543
B45: Semi Annual 2017 | C45: 0.1318392268 | D45: 0.2476054287 | E45: 0.2374293401 | F45: 0.242068257 | G45: 0.1968458925 | H45: 0.1509852848 | I45: 0.254665117 | J45: 0.2089337769
B46: Commissions & other Acq. Expenses / Gross Earned Premiums
B48: NET Expense Ratio | C48: A&H | D48: MOTOR | E48: MAT | F48: FIRE | G48: LIABILITY | H48: CREDIT | I48: MISC | J48: TOTAL
B49: Semi Annual 2018 | C49: =C17/C34 -> 0.105501178 | D49: 0.1244077119 | E49: 0.08286547185 | F49: 0.2037290817 | G49: 0.1293381345 | H49: 0.6513900559 | I49: 0.255459706 | J49: 0.1291087354
B50: Semi Annual 2017 | C50: 0.09757437865 | D50: 0.1103848903 | E50: 0.2308572554 | F50: 0.1675809119 | G50: 0.1415298463 | H50: 0.2353900215 | I50: 0.1882073654 | J50: 0.1197228572
B51: Maintenance & Renewal Expenses / Net Earned Premiums
B53: NET Acquisition Cost Ratio | C53: A&H | D53: MOTOR | E53: MAT | F53: FIRE | G53: LIABILITY | H53: CREDIT | I53: MISC | J53: TOTAL
B54: Semi Annual 2018 | C54: =(C21-C25)/C34 -> 0.1278965216 | D54: =(D21-D25)/D34 -> 0.285266646 | E54: 0.03493148355 | F54: 0.2514650278 | G54: 0.1901972679 | H54: 0.1322720057 | I54: 1.264850845 | J54: 0.2270712533
B55: Semi Annual 2017 | C55: =(C22-C26)/C35 -> 0.09503686777 | D55: 0.2663462295 | E55: 0.1830710017 | F55: 0.2298791287 | G55: 0.180608768 | H55: 0.0948448612 | I55: 1.074198037 | J55: 0.2110579713
B56: (Commissions & other Acq. expenses - Reins. Commissions & Profit Commissions) / Net Earned Premiums
B59: Notes:
B60: * Data for preparing these results are based on records of companies representing 96% marketshare of the non-life market.

Sheet Technical Accounts
C6: FINANCIAL PERIOD (ΟΙΚΟΝΟΜΙΚΗ ΠΕΡΙΟΔΟΣ) : 01/01/18 - 30/06/18
C7: CURRENCY (ΝΟΜΙΣΜΑ) : EURO (ΕΥΡΩ)
C10: TECHNICAL ACCOUNTS NON LIFE BUSINESS | G10: (preliminary results, non audited)
C12: ΤΕΧΝΙΚΟΙ ΛΟΓΑΡΙΑΣΜΟΙ ΓΕΝΙΚΟΥ ΚΛΑΔΟΥ | G12: (προκαταρκτικά αποτελέσματα, μη ελεγμένα)
E14: A&H | F14: MOTOR | G14: MAT | H14: FIRE | I14: LIABILITY | J14: CREDIT | K14: MISC | L14: Semi Annual 2018 | M14: Semi Annual 2017
C16: Premiums
C18: Gross Premiums written | E18: 75810570.21 | F18: 90395845.87 | G18: 1950993.94 | H18: 55485701.41 | I18: 23400376.87 | J18: 77957.53 | K18: 2991254.19 | L18: =SUM(E18:K18) -> 250112700 | M18: 236465866
C19: Gross premiums earned | E19: 72762463.19 | F19: 83293267.74 | G19: 1814878.595 | H19: 51759686.8 | I19: 21041003.23 | J19: 51415.23981 | K19: 2697102.833 | L19: =SUM(E19:K19) -> 233419817.6 | M19: 223106641
C20: Reinsurance premiums | E20: 27741778.45 | F20: 11041386.74 | G20: 853760.4973 | H20: 30732719.85 | I20: 5406556.716 | J20: 31653.52 | K20: 2316329.55 | L20: =SUM(E20:K20) -> 78124185.31 | M20: 76213072.5
C21: Net premiums written | E21: 48068791.76 | F21: 79354459.13 | G21: 1097233.443 | H21: 24752981.56 | I21: 17993820.16 | J21: 46304.01 | K21: 674924.64 | L21: =SUM(E21:K21) -> 171988514.7 | M21: 160252793.5
C22: Net premiums earned | E22: 45851765.5 | F22: 77860828.57 | G22: 2650753.442 | H22: 19739536.23 | I22: 16077271.48 | J22: 31584.05939 | K22: 616523.6205 | L22: =SUM(E22:K22) -> 162828262.9 | M22: 156331834.8
C24: Claims
C26: Gross Claims incured | E26: 58385040.71 | F26: 57385960.59 | G26: 213003.3247 | H26: 6045662.984 | I26: 6454797.579 | J26: 1584.049719 | K26: 3795392.874 | L26: =SUM(E26:K26) -> 132281442.1 | M26: 121773283.1
C27: Net Claims Incurred | E27: 37891946.66 | F27: 55595139.86 | G27: 215801.0347 | H27: 5529575.284 | I27: 5432347.885 | J27: 1163.319719 | K27: 68477.11351 | L27: =SUM(E27:K27) -> 104734451.2 | M27: 96557542.1
C29: Expenses
C31: Operating Expenses | E31: 4837415.275 | F31: 9686487.527 | G31: 219655.9348 | H31: 4021517.589 | I31: 2079404.301 | J31: 20573.54222 | K31: 157496.9428 | L31: =SUM(E31:K31) -> 21022551.11 | M31: 19534535.13
C32: Commission Payable & Acquisition costs | E32: 11117709.31 | F32: 22151824.52 | G32: 366631.345 | H32: 12615948.9 | I32: 4010440.16 | J32: 16726.71688 | K32: 1070617.35 | L32: =SUM(E32:K32) -> 51349898.3 | M32: 47242625.83
C33: Total Expenses | E33: 15955124.59 | F33: 31838312.05 | G33: 586287.2798 | H33: 16637466.49 | I33: 6089844.461 | J33: 37300.2591 | K33: 1228114.292 | L33: =SUM(E33:K33) -> 72372449.41 | M33: 66777160.96
C36: Reinsurance Commissions and profit participations | E36: 5253427.996 | F36: -59272.9 | G36: 274036.5947 | H36: 7652145.869 | I36: 952587.05 | J36: 12549.03 | K36: 290806.927 | L36: =SUM(E36:K36) -> 14376280.57 | M36: 13731933.16
C37: Other Income
C38: Policy Fees | E38: 609478.4439 | F38: 7391631.591 | G38: 47729.60203 | H38: 3963076.88 | I38: 511851.4352 | J38: 1089.243721 | K38: 30899.12483 | L38: =SUM(E38:K38) -> 12555756.32 | M38: 12235898.11
C39: Other Expenses
C42: Underwriting Results Semi Annual 2018 | E42: =E22-E27-E33+E36+E37+E38+E39 -> -2132399.312 | F42: =F22-F27-F33+F36+F37+F38+F39 -> -2240264.649 | G42: 2170431.325 | H42: =H22-H27-H33+H36+H37+H38+H39 -> 9187717.207 | I42: 6019517.618 | J42: =J22-J27-J33+J36+J37+J38+J39 -> 6758.754298 | K42: -358361.7335 | L42: =L22-L27-L33+L36+L37+L38+L39 -> 12653399.21
C43: Underwriting Results Semi Annual 2017 | E43: 5830361.571 | F43: 4946458.897 | G43: 387837.1097 | H43: 6947505.231 | I43: 4363645.458 | J43: 44221.01646 | K43: -192065.8807 | M43: 18964962.99
C45: FINANCIAL INDICATORS | D45: A & H | F45: MOTOR | H45: MAT | J45: FIRE | L45: LIABILITY | N45: CREDIT | P45: OTHER | R45: TOTAL
D47: Semi Annual 2018 | E47: Semi Annual 2017 | F47: Semi Annual 2018 | G47: Semi Annual 2017 | H47: Semi Annual 2018 | I47: Semi Annual 2017 | J47: Semi Annual 2018 | K47: Semi Annual 2017 | L47: Semi Annual 2018 | M47: Semi Annual 2017 | N47: Semi Annual 2018 | O47: Semi Annual 2017 | P47: Semi Annual 2018 | Q47: Semi Annual 2017 | R47: Semi Annual 2018 | S47: Semi Annual 2017
C48: Gross Claims ratio | D48: =E26/E19 -> 0.8024060504 | E48: 0.6926628464 | F48: =F26/F19 -> 0.6889627716 | G48: 0.6178058635 | H48: =G26/G19 -> 0.1173650542 | I48: 0.1857580218 | J48: =H26/H19 -> 0.1168025418 | K48: 0.3194999927 | L48: =I26/I19 -> 0.3067723296 | M48: 0.4495384694 | N48: =J26/J19 -> 0.03080895324 | O48: -1.160811035 | P48: =K26/K19 -> 1.407211037 | Q48: 0.04970874505 | R48: =L26/L19 -> 0.5667104167 | S48: 0.5412336223
C49: Gross Acquisition Cost Ratio | D49: =E32/E19 -> 0.1527945705 | E49: 0.1318392268 | F49: =F32/F19 -> 0.2659497595 | G49: 0.2476054287 | H49: =G32/G19 -> 0.2020142537 | I49: 0.2374293401 | J49: =H32/H19 -> 0.2437408276 | K49: 0.242068257 | L49: =I32/I19 -> 0.1906011855 | M49: 0.1968458925 | N49: =J32/J19 -> 0.3253260501 | O49: 0.1509852848 | P49: =K32/K19 -> 0.3969508824 | Q49: 0.254665117 | R49: =L32/L19 -> 0.2199894543 | S49: 0.2089337769
C50: Gross Expense Ratio | D50: =E31/E19 -> 0.06648229132 | E50: 0.06213781364 | F50: =F31/F19 -> 0.1162937629 | G50: 0.1020771899 | H50: =G31/G19 -> 0.1210306493 | I50: 0.1285527909 | J50: =H31/H19 -> 0.07769594134 | K50: 0.07560705923 | L50: =I31/I19 -> 0.09882629063 | M50: 0.1080090384 | N50: =J31/J19 -> 0.4001448265 | O50: 0.07851086755 | P50: =K31/K19 -> 0.05839486018 | Q50: 0.03120914282 | R50: =L31/L19 -> 0.09006326594 | S50: 0.08411920542
C51: Gross Combined Ratio | D51: =D48+D49+D50 -> 1.021682912 | E51: 0.8866398869 | F51: =F48+F49+F50 -> 1.071206294 | G51: 0.967488482 | H51: =H48+H49+H50 -> 0.4404099572 | I51: 0.5517401528 | J51: =J48+J49+J50 -> 0.4382393107 | K51: 0.6371753089 | L51: =L50+L49+L48 -> 0.5961998057 | M51: 0.7543934003 | N51: =N50+N49+N48 -> 0.7562798299 | O51: -0.9313148831 | P51: =P50+P49+P48 -> 1.862556779 | Q51: 0.3355830049 | R51: =R50+R49+R48 -> 0.8767631369 | S51: 0.8342866046
C52: Net Claims Ratio | D52: =E27/E22 -> 0.8264010393 | E52: 0.678242962 | F52: =F27/F22 -> 0.7140322147 | G52: 0.6493910463 | H52: =G27/G22 -> 0.08141120605 | I52: 0.2421901743 | J52: =H27/H22 -> 0.2801269098 | K52: 0.477816621 | L52: =I27/I22 -> 0.3378899145 | M52: 0.4228938655 | N52: =J27/J22 -> 0.0368324953 | O52: -0.673320544 | P52: =K27/K22 -> 0.1110697323 | Q52: 0.09776787991 | R52: =L27/L22 -> 0.6432203433 | S52: 0.6045206279
C53: Net Acquisition Cost Ratio | D53: =(E32-E36)/E22 -> 0.1278965216 | E53: 0.09503686777 | F53: =(F32-F36)/F22 -> 0.285266646 | G53: 0.2663462295 | H53: =(G32-G36)/G22 -> 0.03493148355 | I53: 0.1830710017 | J53: =(H32-H36)/H22 -> 0.2514650278 | K53: 0.2298791287 | L53: =(I32-I36)/I22 -> 0.1901972679 | M53: 0.180608768 | N53: =(J32-J36)/J22 -> 0.1322720057 | O53: 0.0948448612 | P53: =(K32-K36)/K22 -> 1.264850845 | Q53: 1.074198037 | R53: =(L32-L36)/L22 -> 0.2270712533 | S53: 0.2110579713
C54: Net Expense Ratio | D54: =E31/E22 -> 0.105501178 | E54: 0.09757437865 | F54: =F31/F22 -> 0.1244077119 | G54: 0.1103848903 | H54: =G31/G22 -> 0.08286547185 | I54: 0.2308572554 | J54: =H31/H22 -> 0.2037290817 | K54: 0.1675809119 | L54: =I31/I22 -> 0.1293381345 | M54: 0.1415298463 | N54: =J31/J22 -> 0.6513900559 | O54: 0.2353900215 | P54: =K31/K22 -> 0.255459706 | Q54: 0.1882073654 | R54: =L31/L22 -> 0.1291087354 | S54: 0.1197228572
C55: Net Combined Ratio | D55: =D52+D53+D54 -> 1.059798739 | E55: 0.8708542084 | F55: =F52+F53+F54 -> 1.123706573 | G55: 1.026122166 | H55: =H52+H53+H54 -> 0.1992081615 | I55: 0.6561184314 | J55: =J52+J53+J54 -> 0.7353210193 | K55: 0.8752766615 | L55: =L54+L53+L52 -> 0.6574253168 | M55: 0.7450324798 | N55: =N54+N53+N52 -> 0.8204945569 | O55: -0.3430856612 | P55: =P54+P53+P52 -> 1.631380284 | Q55: 1.360173283 | R55: =R54+R53+R52 -> 0.9994003321 | S55: 0.9353014563
C57: Notes:
C58: * Data for preparing these results are based on records of companies representing 96% marketshare of the non-life market.
F62: DEFINITIONS
C64: Premiums
C65: Gross premiums written | D65: Total written premiums before deduction of reinsurance, excluding policy fees and allocations from Cyprus Hire Risk Pool & OSEDA
C66: Gross premiums earned | D66: Gross written premiums plus/minus any increase/decrease respectively of the gross Unearned Premium Reserved
C67: Reinsurance premiums | D67: Premiums ceded to Reinsurance companies
C69: Net premiums written | D69: Total written premiums less reinsurance
C70: Net premiums earned | D70: Net premiums plus/minus any increase/decrease, respectively, of the net Unearned Premium Reserved
C73: Claims
C74: Gross incurred claims | D74: Gross claims paid - Gross claims reserves b/f + Gross claims reserves c/f
C75: Net incurred claims | D75: Net claims paid - Net claims reserves b/f + Net claims reserves c/f
C79: Expenses
C80: Operating Expenses | D80: Total expenses allocated to the accounting classes (excluding claims and commissions reported above)
C81: Commission Payable & Acquisition costs | D81: Includes commission expense plus/minus any decrease/increase, in the deferred acquisition reserve
C85: Reinsurance Commissions and profit participations | D85: Total commission receivable from reinsurers and profit allocation from insurance pools
C86: Policy Fees | D86: Charges for the issuing, renewal or endorsement of a policy
C90: KEY INDICATORS
C92: GROSS CLAIMS RATIO | D92: (GROSS CLAIMS INCURRED)/GROSS PREMIUMS EARNED)
C93: GROSS ACQUISITION COST RATIO | D93: ((COMMISSION+ACQUISITION COSTS)/GROSS PREMIUMS EARNED)
C94: GROSS EXPENSE RATIO | D94: (OPERATING EXPENSES/GROSS PREMIUMS EARNED)
C95: GROSS COMBINED RATIO | D95: (GROSS CLAIMS RATIO+GROSS EXPENSE RATIO)+GROSS ACQUISITION COST RATIO)
C96: NET CLAIMS RATIO | D96: (NET CLAIMS INCURRED)/NET PREMIUMS EARNED)
C97: NET ACQUISITION COST RATIO | D97: ((COMMISSION+ACQUISITION COSTS-REINSURANCE COMMISSION&PROFIT PARTICIPATION)/NET PREMIUMS EARNED)
C98: NET EXPENSE RATIO | D98: (OPERATING EXPENSES/NET PREMIUMS EARNED)
C99: NET COMBINED RATIO | D99: (NET CLAIMS RATIO+NET EXPENSE RATIO)+NET ACQUISITION COST RATIO)

Sheet Frequencies
B5: FINANCIAL PERIOD (ΟΙΚΟΝΟΜΙΚΗ ΠΕΡΙΟΔΟΣ) : 01/01/18 - 30/06/18
B6: CURRENCY (ΝΟΜΙΣΜΑ) : EURO (ΕΥΡΩ)
B8: Technical Information | C8: (preliminary results, non audited)
B10: Τεχνικές Πληροφορίες | C10: (προκαταρκτικά αποτελέσματα, μη ελεγμένα)
C14: A&H | D14: MOTOR | E14: M.A.T. | F14: FIRE | G14: LIABILITY | H14: CREDIT | I14: OTHER | J14: Semi Annual 2018 | K14: Semi Annual 2017
B16: No of Claims Reported | C16: 230343 | D16: 36927 | E16: 138 | F16: 4239 | G16: 2017 | H16: 0 | I16: 244 | J16: =SUM(C16:I16) -> 273908 | K16: 244131
B17: No of Policies in-force at 01/01 | C17: 144350 | D17: 555261 | E17: 5146 | F17: 231048 | G17: 56854 | H17: 96 | I17: 2695 | J17: =SUM(C17:I17) -> 995450 | K17: 955103
B18: No of Policies in-force at 31/12 | C18: 135519 | D18: 517641 | E18: 4036 | F18: 217416 | G18: 47234 | H18: 99 | I18: 4441 | J18: =SUM(C18:I18) -> 926386 | K18: 995744
B19: Premiums earned | C19: 72762463.19 | D19: 83293267.74 | E19: 1814878.595 | F19: 51759686.8 | G19: 21041003.23 | H19: 51415.23981 | I19: 2697102.833 | J19: =SUM(C19:I19) -> 233419817.6 | K19: 224992088.5
B21: Average Premium | C21: =C19/AVERAGE(C17:C18)*2 -> 1039.950308 | D21: 310.5344859 | E21: 790.6245241 | F21: 461.6619109 | G21: 808.5851676 | H21: 1054.671586 | I21: 1511.828942 | J21: 485.8267149 | K21: 461.3218536
B22: Claim Frequency | D22: =D16/AVERAGE(D17:D18)*2 -> 0.1376714742 | E22: 0.06011762143 | F22: 0.03780905491 | G22: 0.07751133656 | H22: 0 | I22: 0.1367713004 | J22: 0.5700965119 | K22: 0.5005641139
B25: Notes:
B26: * Data for preparing these results are based on records of companies representing 96% marketshare of the non-life market.

Sheet Life Premiums
B7: FINANCIAL PERIOD (ΟΙΚΟΝΟΜΙΚΗ ΠΕΡΙΟΔΟΣ) : 01/01/18 - 30/06/18
B8: CURRENCY (ΝΟΜΙΣΜΑ) : EURO (ΕΥΡΩ)
B10: TOTAL GROSS PREMIUMS - LIFE | E10: (preliminary results, non audited)
B11: Total gross premiums before deduction of reinsurance (including policy Fees)
B12: Excluding A&H premiums by Life Companies
B14: ΣΥΝΟΛΟ ΜΙΚΤΩΝ ΑΣΦΑΛΙΣΤΡΩΝ – ΚΛΑΔΟΥ ΖΩΗΣ (προκαταρκτικά αποτελέσματα μη ελεγμένα)
B15: Σύνολο μικτών ασφαλίστρων πριν την αφαίρεση της αντασφάλισης συμπεριλαμβανομένων των δικαιωμάτων συμβολαίων.
B16: Μη συμπεριλαμβανομένων ασφαλίστρων Ατυχημάτων και Υγείας από Εταιρείες Ζωής
C19: Life policies | D19: Group Pension Plans | E19: TOTAL Semi Annual 2018 | F19: TOTAL Semi Annual 2017 | G19: % Change | H19: Market share Semi Annual 2018 | I19: Market share Semi Annual 2017
B20: ALLIANZ HELLAS | C20: 397198.17 | D20: 0 | E20: =C20+D20 -> 397198.17 | F20: 226709.34 | G20: =(E20-F20)/F20 -> 0.7520150251 | H20: =E20/$E$31 -> 0.001910886051 | I20: =F20/$F$31 -> 0.00119981709
B21: ALTIUS INSURANCE | C21: 6554892.552 | D21: 0 | E21: =C21+D21 -> 6554892.552 | F21: 6273757.325 | G21: =(E21-F21)/F21 -> 0.04481130086 | H21: =E21/$E$31 -> 0.03153502128 | I21: 0.03320269582
B22: ETHNIKI INSURANCE | C22: 4531824 | D22: 0 | E22: 4531824 | F22: 4064097 | G22: 0.1150875582 | H22: 0.02180221341 | I22: 0.02150847881
B23: EUROLIFE | C23: 44610840.8 | D23: 626320.87 | E23: 45237161.67 | F23: 42062841.16 | G23: 0.07546614608 | H23: 0.2176320732 | I23: 0.2226097772
B24: HELLENIC ALICO | C24: 6863124.85 | D24: 0 | E24: 6863124.85 | F24: 6828288.56 | G24: 0.005101760081 | H24: 0.03301790021 | I24: 0.03613744942
B25: CNP CYPRIALIFE | C25: 42708481 | D25: 162748 | E25: 42871229 | F25: 38279633 | G25: 0.1199487989 | H25: 0.2062497757 | I25: =F25/$F$31 -> 0.2025878504
B26: METLIFE | C26: 11324655.07 | D26: 0 | E26: 11324655.07 | F26: 10870101.99 | G26: 0.04181681832 | H26: 0.05448193632 | I26: 0.05752799658
B27: MINERVA | C27: 217129 | D27: 0 | E27: 217129 | F27: 258918 | G27: -0.1613985895 | H27: 0.001044588844 | I27: 0.001370275443
B28: PRIME INSURANCE | C28: 13413564.27 | D28: 0 | E28: 13413564.27 | F28: 12921808.81 | G28: 0.03805623975 | H28: 0.06453149785 | I28: 0.06838627401
B29: UNIVERSAL LIFE | C29: 62028117.44 | D29: 459634 | E29: 62487751.44 | F29: 58419096.05 | G29: 0.06964598334 | H29: 0.300623169 | I29: 0.3091722194
B30: ANCORIA | C30: 3154674.23 | D30: 10807526.02 | E30: 13962200.25 | F30: 8748000 | G30: 0.5960448388 | H30: 0.06717093812 | I30: 0.0462971658
B31: TOTAL | C31: =SUM(C20:C30) -> 195804501.4 | D31: =SUM(D20:D30) -> 12056228.89 | E31: =C31+D31 -> 207860730.3 | F31: =SUM(F20:F30) -> 188953251.2 | G31: =(E31-F31)/F31 -> 0.1000643223 | H31: =C31/$C$31 -> 1 | I31: 1
B33: % Change Semi Annual 2018 | C33: =E31/F31-1 -> 0.1000643223
B34: % Change Semi Annual 2017 | C34: 0.08345079609
B48: FINANCIAL PERIOD (ΟΙΚΟΝΟΜΙΚΗ ΠΕΡΙΟΔΟΣ) : 01/01/18 - 30/06/18
B49: CURRENCY (ΝΟΜΙΣΜΑ) : EURO (ΕΥΡΩ)
B51: TOTAL GROSS PREMIUMS - LIFE | E51: (preliminary results, non audited)
B52: Total gross premiums before deduction of reinsurance (including policy Fees)
B53: Including A&H premiums by Life Companies
B55: ΣΥΝΟΛΟ ΜΙΚΤΩΝ ΑΣΦΑΛΙΣΤΡΩΝ – ΚΛΑΔΟΥ ΖΩΗΣ (προκαταρκτικά αποτελέσματα μη ελεγμένα)
B56: Σύνολο μικτών ασφαλίστρων πριν την αφαίρεση της αντασφάλισης συμπεριλαμβανομένων των δικαιωμάτων συμβολαίων.
B57: Συμπεριλαμβανομένων ασφαλίστρων Ατυχημάτων και Υγείας από Εταιρείες Ζωής
C61: Life policies | D61: Group Pension Plans | E61: TOTAL Semi Annual 2018 | F61: TOTAL Semi Annual 2017 | G61: % Change | H61: Market share Semi Annual 2018 | I61: Market share Semi Annual 2017
B62: ALLIANZ HELLAS | C62: 425999.26 | D62: 0 | E62: =D62+C62 -> 425999.26 | F62: 194742.53 | G62: =(E62-F62)/F62 -> 1.187499875 | H62: =E62/$E$73 -> 0.001588593909 | I62: =F62/$F$73 -> 0.0008091812708
B63: ALTIUS INSURANCE | C63: 10930399.53 | D63: 0 | E63: =D63+C63 -> 10930399.53 | F63: 9949771.449 | G63: =(E63-F63)/F63 -> 0.09855785034 | H63: =E63/$E$73 -> 0.04076055466 | I63: =F63/$F$73 -> 0.04134263176
B64: ETHNIKI INSURANCE | C64: 4531824 | D64: 0 | E64: 4531824 | F64: 4064097 | G64: 0.1150875582 | H64: 0.0168996256 | I64: 0.01688686686
B65: EUROLIFE | C65: 56037096.36 | D65: 626320.87 | E65: 56663417.23 | F65: 50904469.91 | G65: 0.1131324486 | H65: 0.2113035583 | I65: 0.211514884
B66: HELLENIC ALICO | C66: 7139508.33 | D66: 0 | E66: 7139508.33 | F66: 7093625.97 | G66: 0.006468110977 | H66: 0.02662394166 | I66: 0.02947496511
B67: CNP CYPRIALIFE | C67: 50027367 | D67: 162748 | E67: 50190115 | F67: 44924260 | G67: 0.117216288 | H67: 0.1871639659 | I67: 0.1866663117
B68: METLIFE | C68: 22928112.38 | D68: 0 | E68: 22928112.38 | F68: 20631716.37 | G68: 0.1113041673 | H68: 0.08550122755 | I68: 0.08572754227
B69: MINERVA | C69: 594699 | D69: 0 | E69: 594699 | F69: 659922 | G69: -0.0988344077 | H69: 0.002217692136 | I69: 0.002742064215
B70: PRIME INSURANCE | C70: 14094585.62 | D70: 0 | E70: 14094585.62 | F70: 13655789.46 | G70: 0.03213260979 | H70: 0.05256012148 | I70: 0.05674163251
B71: UNIVERSAL LIFE | C71: 86240712.41 | D71: 459634 | E71: 86700346.41 | F71: 79839741.59 | G71: 0.08592969721 | H71: 0.3233142757 | I71: 0.3317448097
B72: ANCORIA | C72: 3154674.23 | D72: 10807526.02 | E72: =D72+C72 -> 13962200.25 | F72: 8748000 | G72: 0.5960448388 | H72: 0.05206644319 | I72: 0.03634911058
B73: TOTAL | C73: =SUM(C62:C72) -> 256104978.1 | D73: =SUM(D62:D72) -> 12056228.89 | E73: =SUM(E62:E72) -> 268161207 | F73: =SUM(F62:F72) -> 240666136.3 | G73: =(E73-F73)/F73 -> 0.114245698 | H73: =C73/$C$73 -> 1 | I73: 1
B75: % Change Semi Annual 2018 | C75: =E73/F73-1 -> 0.114245698
B76: % Change Semi Annual 2017 | C76: 0.08882006769

Sheet Life Premiums incl A&H
B5: FINANCIAL PERIOD (ΟΙΚΟΝΟΜΙΚΗ ΠΕΡΙΟΔΟΣ) : 01/01/18 - 30/06/18
B6: CURRENCY (ΝΟΜΙΣΜΑ) : EURO (ΕΥΡΩ)
B8: TOTAL GROSS PREMIUMS - LIFE | G8: (preliminary results, non audited)
B9: Total gross premiums before deduction of reinsurance (including policy Fees)
B10: Including A&H premiums by Life Companies
B12: ΣΥΝΟΛΟ ΜΙΚΤΩΝ ΑΣΦΑΛΙΣΤΡΩΝ – ΚΛΑΔΟΥ ΖΩΗΣ
B13: Σύνολο μικτών ασφαλίστρων πριν την αφαίρεση της αντασφάλισης συμπεριλαμβανομένων των δικαιωμάτων συμβολαίων.
B14: Συμπεριλαμβανομένων ασφαλίστρων Ατυχημάτων και Υγείας από Εταιρείες Ζωής
B16: TOTAL GROSS PREMIUMS BY LIFE COMPANIES
B17: Life and P.A. & Health
D18: Semi Annual 2018 | H18: Semi Annual 2017
B19: NO. | C19: LIFE COMPANIES | D19: LIFE | E19: A&H | F19: TOTAL | G19: market share % | H19: LIFE | I19: A&H | J19: TOTAL | K19: market share %
D20: € 000s | H20: € 000s
B21: 1 | C21: ALLIANZ | D21: ='Life Premiums'!E20/1000 -> 397.19817 | E21: 28.80109 | F21: =D21+E21 -> 425.99926 | G21: =F21/$F$34*100 -> 0.1501735492 | H21: 226.70934 | I21: -31.96681 | J21: =I21+H21 -> 194.74253 | K21: =J21/$J$34*100 -> 0.07628616581
B22: 2 | C22: ALTIUS INSURANCE | D22: ='Life Premiums'!E21/1000 -> 6554.892552 | E22: 4375.506983 | F22: =D22+E22 -> 10930.39953 | G22: =F22/$F$34*100 -> 3.853191887 | H22: 6273.757325 | I22: 3676.014125 | J22: =I22+H22 -> 9949.771449 | K22: 3.897607341
B23: 3 | C23: ETHNIKI INS. | D23: ='Life Premiums'!E22/1000 -> 4531.824 | E23: 0 | F23: 4531.824 | G23: =F23/$F$34*100 -> 1.597561682 | H23: 4064.097 | I23: 0 | J23: 4064.097 | K23: 1.592021926
B24: 4 | C24: EUROLIFE | D24: ='Life Premiums'!E23/1000 -> 45237.16167 | E24: 11426.25556 | F24: 56663.41723 | G24: 19.97502642 | H24: 41737.40315 | I24: 8841.62875 | J24: 50579.0319 | K24: 19.81323964
B25: 5 | C25: HELLENIC ALICO LIFE | D25: ='Life Premiums'!E24/1000 -> 6863.12485 | E25: 276.38348 | F25: 7139.50833 | G25: 2.516824338 | H25: 6828.28856 | I25: 265.33741 | J25: 7093.62597 | K25: 2.778774246
B26: 6 | C26: CNP CYPRIALIFE | D26: ='Life Premiums'!E25/1000 -> 42871.229 | E26: 7318.886 | F26: 50190.115 | G26: 17.69305351 | H26: 38262.497 | I26: 6644.627 | J26: 44907.124 | K26: 17.59139263
B27: 7 | C27: METLIFE | D27: ='Life Premiums'!E26/1000 -> 11324.65507 | E27: 11603.45731 | F27: 22928.11238 | G27: 8.082633788 | H27: 10870.10199 | I27: 9761.61438 | J27: 20631.71637 | K27: 8.082027773
B28: 8 | C28: MINERVA INSURANCE | D28: ='Life Premiums'!E27/1000 -> 217.129 | E28: 377.57 | F28: 594.699 | G28: 0.2096436964 | H28: 258.918 | I28: 401.004 | J28: 659.922 | K28: 0.2585101422
B29: 9 | C29: PRIME | D29: ='Life Premiums'!E28/1000 -> 13413.56427 | E29: 681.02135 | F29: 14094.58562 | G29: 4.968632919 | H29: 12921.80881 | I29: 733.98065 | J29: 13655.78946 | K29: 5.349359584
B30: 10 | C30: UNIVERSAL LIFE | D30: ='Life Premiums'!E29/1000 -> 62487.75144 | E30: 24212.59497 | F30: =D30+E30 -> 86700.34641 | G30: 30.56366515 | H30: 57963.95305 | I30: 21420.64554 | J30: 79384.59859 | K30: 31.09719613
B31: 11 | C31: ANCORIA | D31: ='Life Premiums'!E30/1000 -> 13962.20025 | E31: 0 | F31: =D31+E31 -> 13962.20025 | G31: 4.921964339 | H31: 8748 | I31: 0 | J31: 8748 | K31: =J31/$J$34*100 -> 3.42683942
C32: Total Life Companies | D32: =SUM(D21:D31) -> 207860.7303 | E32: =SUM(E21:E31) -> 60300.47674 | F32: =D32+E32 -> 268161.207 | G32: =SUM(G21:G31) -> 94.53237129 | H32: =SUM(H21:H31) -> 188155.5342 | I32: =SUM(I21:I31) -> 51712.88504 | J32: =I32+H32 -> 239868.4193 | K32: =SUM(K21:K31) -> 93.963255
C33: Total Non-life Companies | D33: - | E33: 15510.09347 | F33: =E33 -> 15510.09347 | G33: =F33/$F$34*100 -> 5.467628711 | H33: - | I33: 15410.53979 | J33: =I33 -> 15410.53979 | K33: =J33/J34*100 -> 6.036744997
C34: TOTAL PREMIUMS | D34: =D32 -> 207860.7303 | E34: =E32+E33 -> 75810.57021 | F34: =D34+E34 -> 283671.3005 | G34: =SUM(G32:G33) -> 100 | H34: =H32 -> 188155.5342 | I34: =I32+I33 -> 67123.42483 | J34: =H34+I34 -> 255278.9591 | K34: =K32+K33 -> 100

Sheet Life Claims
C6: FINANCIAL PERIOD (ΟΙΚΟΝΟΜΙΚΗ ΠΕΡΙΟΔΟΣ) : 01/01/18 - 30/06/18
C7: CURRENCY (ΝΟΜΙΣΜΑ) : EURO (ΕΥΡΩ)
C11: GROSS CLAIMS INCURRED ANALYSIS BY TYPE OF CLAIM - LIFE BUSINESS (preliminary results, non audited)
C13: ΜΕΙΚΤΕΣ ΠΡΑΓΜΑΤΟΠΟΙΗΘΕΙΣΕΣ ΑΠΑΙΤΗΣΕΙΣ ΚΛΑΔΟΥ ΖΩΗΣ ΑΝΑ ΤΥΠΟ ΑΠΑΙΤΗΣΗΣ (προκαταρκτικά αποτελέσματα, μη ελεγμένα)
E15: Allianz | F15: Altius | G15: Ethniki | H15: Eurolife | I15: Prime | J15: Cyprialife | K15: Hellenic Alico | L15: Metlife | M15: Minerva | N15: Universal Life | O15: Ancoria | P15: Total Semi Annual 2018 | Q15: Total Semi Annual 2017 | R15: % Change
C17: Gross Claims Incurred
C19: Regular premium policies:
C20: 1) Death Claims
C21: A) Number of claims | E21: 60 | F21: 7 | G21: 4 | H21: 79 | I21: 11 | J21: 21 | K21: 20 | L21: 27 | M21: 5 | N21: 145 | O21: 1 | P21: =SUM(E21:O21) -> 380 | Q21: 1110 | R21: =P21/Q21-1 -> -0.6576576577
C22: B) Amount payable | E22: 2783696.43 | F22: 361242.05 | G22: 553241 | H22: 3825113.61 | I22: 554165.67 | J22: 2641350 | K22: 721861.88 | L22: 363415.38 | M22: 1212490 | N22: 8262574.1 | O22: 64000 | P22: =SUM(E22:O22) -> 21343150.12 | Q22: 21182704.21 | R22: =P22/Q22-1 -> 0.00757438278
C23: 2) Maturitites
C24: A) Number of claims | E24: 2 | F24: 8 | G24: 5 | H24: 221 | I24: 43 | J24: 410 | K24: 13 | L24: 387 | M24: 8 | N24: 412 | O24: 0 | P24: =SUM(E24:O24) -> 1509 | Q24: 1234 | R24: =P24/Q24-1 -> 0.2228525122
C25: B) Amount payable | E25: 22404.78 | F25: 202117.15 | G25: 87028 | H25: 1970299.07 | I25: 297519.27 | J25: 5179932 | K25: 235999.68 | L25: 4667005.25 | M25: 273522.54 | N25: 7083744.72 | O25: 0 | P25: =SUM(E25:O25) -> 20019572.46 | Q25: 19966681.18 | R25: =P25/Q25-1 -> 0.002648977039
C26: 3) Surrenders
C27: A) Number of claims | E27: 2 | F27: 119 | G27: 195 | H27: 1573 | I27: 558 | J27: 1158 | K27: 42 | L27: 324 | M27: 27 | N27: 833 | O27: 253 | P27: =SUM(E27:O27) -> 5084 | Q27: 5678 | R27: =P27/Q27-1 -> -0.1046143008
C28: B) Amount payable | E28: 5110.48 | F28: 1272251.74 | G28: 915921 | H28: 17587407.79 | I28: 4053057.53 | J28: 14012121 | K28: 336542.89 | L28: 4418036.29 | M28: 169733 | N28: 8908750.46 | O28: 1121000 | P28: =SUM(E28:O28) -> 52799932.18 | Q28: 54340996.67 | R28: =P28/Q28-1 -> -0.02835915026
C29: 4) Other insured events
C30: A) Number of claims | E30: 0 | F30: 1646 | G30: 145 | H30: 84 | I30: - | J30: 548 | K30: 17 | L30: 12 | M30: 10 | N30: 26 | O30: 0 | P30: =SUM(E30:O30) -> 2488 | Q30: 3462 | R30: =P30/Q30-1 -> -0.2813402657
C31: B) Amount payable | E31: 0 | F31: 1021813.34 | G31: 78480 | H31: 1794240.77 | I31: 2270893.79 | J31: 6028804 | K31: 652955.92 | L31: 5576.12 | M31: 75098.97 | N31: 1019275.66 | O31: 0 | P31: =SUM(E31:O31) -> 12947138.57 | Q31: 11514576.66 | R31: =P31/Q31-1 -> 0.1244129032
C33: Total Amount Payable: | E33: =E31+E28+E25+E22 -> 2811211.69 | F33: =F31+F28+F25+F22 -> 2857424.28 | G33: =G31+G28+G25+G22 -> 1634670 | H33: 25177061.24 | I33: 7175636.26 | J33: 27862207 | K33: 1947360.37 | L33: 9454033.04 | M33: 1730844.51 | N33: 25274344.94 | O33: 1185000 | P33: =SUM(E33:O33) -> 107109793.3 | Q33: 107004958.7 | R33: =P33/Q33-1 -> 0.0009797173224

Sheet Life New Business
C6: FINANCIAL PERIOD (ΟΙΚΟΝΟΜΙΚΗ ΠΕΡΙΟΔΟΣ) : 01/01/18 - 30/06/18
C7: CURRENCY (ΝΟΜΙΣΜΑ) : EURO (ΕΥΡΩ)
B9: ANALYSIS OF NEW BUSINESS -INDIVIDUAL POLICIES | G9: (preliminary results, non audited)
B11: ΑΝΑΛΥΣΗ ΝΕΩΝ ΕΡΓΑΣΙΩΝ – ΑΤΟΜΙΚΑ ΣΥΜΒΟΛΑΙΑ (προκαταρκτικά αποτελέσματα μη ελεγμένα)
E16: Allianz | F16: Altius | G16: Ethniki | H16: Eurolife | I16: Prime | J16: Cyprialife | K16: Hellenic Alico | L16: Metlife | M16: Minerva | N16: Universal Life | O16: Ancoria | P16: Total Semi Annual 2018 | Q16: Total Semi Annual 2017 | R16: % Change
C18: NEW BUSINESS (INDIVIDUAL):
C19: Regular premium policies:
C20: 1) Unit-linked contracts
C21: A) Number of contracts | E21: 86 | F21: 285 | G21: 316 | H21: 2738 | I21: 1158 | J21: 2147 | K21: 71 | L21: 888 | M21: 0 | N21: 1494 | O21: 0 | P21: =SUM(E21:O21) -> 9183 | Q21: 8437 | R21: =P21/Q21-1 -> 0.08842005452
C22: B) Annual gross written premiums | E22: -9527.74 | F22: 1140263.39 | G22: 514620 | H22: 4576655.58 | I22: 1831990.666 | J22: 5761949 | K22: 41839.59895 | L22: 1060107.93 | M22: 0 | N22: 2705711 | O22: 0 | P22: =SUM(E22:O22) -> 17623609.43 | Q22: 14947392.31 | R22: =P22/Q22-1 -> 0.1790424082
C23: 2) Other life contracts
C24: A) Number of contracts | E24: 613 | F24: 263 | G24: 132 | H24: 1151 | I24: 392 | J24: 526 | K24: 0 | L24: 462 | M24: 0 | N24: 218 | O24: 0 | P24: =SUM(E24:O24) -> 3757 | Q24: 3855 | R24: =P24/Q24-1 -> -0.02542153048
C25: B) Annual gross written premiums | E25: 218224.26 | F25: 837561.32 | G25: 80398 | H25: 554820.91 | I25: 244197.6035 | J25: 531108 | K25: 0 | L25: 262975.8117 | M25: 0 | N25: 177932 | O25: 0 | P25: =SUM(E25:O25) -> 2907217.905 | Q25: 3078805.312 | R25: =P25/Q25-1 -> -0.05573181466
C27: TOTAL NEW BUSINESS PREMIUMS | E27: =E22+E25 -> 208696.52 | F27: =F25+F22 -> 1977824.71 | G27: 595018 | H27: 5131476.49 | I27: 2076188.27 | J27: 6293057 | K27: 41839.59895 | L27: 1323083.742 | M27: 0 | N27: 2883643 | O27: 0 | P27: =SUM(E27:O27) -> 20530827.33 | Q27: 18026197.62 | R27: =P27/Q27-1 -> 0.1389438727
C29: Single premium policies:
C30: A) Number of contracts | E30: 0 | F30: 0 | G30: 0 | H30: 21 | I30: 8 | J30: 18 | K30: 0 | L30: 15 | M30: 0 | N30: 174 | O30: 135 | P30: =SUM(E30:O30) -> 371 | Q30: 216 | R30: =P30/Q30-1 -> 0.7175925926
C31: B) Single premiums (incl. additional lump sum premiums on existing policies) | E31: 0 | F31: 298845.53 | G31: 531184 | H31: 2535754.22 | I31: 828066.25 | J31: 2802947 | K31: 238542.77 | L31: 403448.85 | M31: 0 | N31: 5157612 | O31: 3155000 | P31: =SUM(E31:O31) -> 15951400.62 | Q31: 8074371.86 | R31: =P31/Q31-1 -> 0.9755593248
C33: TOTAL NEW BUSINESS PREMIUMS | E33: =E31+E27 -> 208696.52 | F33: =F31+F27 -> 2276670.24 | G33: =G31+G27 -> 1126202 | H33: 7667230.71 | I33: 2904254.52 | J33: 9096004 | K33: 280382.369 | L33: 1726532.592 | M33: 0 | N33: =N31+N27 -> 8041255 | O33: =O31+O27 -> 3155000 | P33: =SUM(E33:O33) -> 36482227.95 | Q33: 26100569.48 | R33: =P33/Q33-1 -> 0.3977560135

Sheet Life In Force Business
C6: FINANCIAL PERIOD (ΟΙΚΟΝΟΜΙΚΗ ΠΕΡΙΟΔΟΣ) : 01/01/18 - 30/06/18
C7: CURRENCY (ΝΟΜΙΣΜΑ) : EURO (ΕΥΡΩ)
B9: MOVEMENTS OF BUSINESS IN FORCE - LIFE BUSINESS (preliminary results, non audited)
B11: ΜΕΤΑΒΟΛΕΣ ΕΡΓΑΣΙΩΝ ΣΕ ΙΣΧΥ (προκαταρκτικά αποτελέσματα,μη ελεγμένα)
E16: Allianz | F16: Altius | G16: Ethniki | H16: Eurolife | I16: Prime | J16: Cyprialife | K16: Hellenic Alico | L16: Metlife | M16: Minerva | N16: Universal Life | O16: Ancoria | P16: Total Semi Annual 2018 | Q16: Total Semi Annual 2017 | R16: % Change
C18: 1) IN FORCE BUSINESS (INDIVIDUAL):
C20: 1) In force at start of Period
C21: A) Number of contracts | E21: 732 | F21: 7625 | G21: 6339 | H21: 75083 | I21: 20736 | J21: 47637 | K21: 2286 | L21: 23665 | M21: 750 | N21: 37275 | O21: 330 | P21: =SUM(E21:O21) -> 222458 | Q21: 217509 | R21: =P21/Q21-1 -> 0.02275308148
C22: B) Annual premiums | E22: 262121.52 | F22: 10195090.05 | G22: 7199561 | H22: 75912342.88 | I22: 25043819.27 | J22: 72088444 | K22: 2210304.906 | L22: 20999100.52 | M22: 517202.97 | N22: 40123595.11 | O22: 701000 | P22: =SUM(E22:O22) -> 255252582.2 | Q22: 244549728.9 | R22: =P22/Q22-1 -> 0.04376554967
C23: 2) New Business plus Reinst & alterations on
C24: A) Number of contracts | E24: 0 | F24: 599 | G24: 474 | H24: 3910 | I24: 1544 | J24: 2694 | K24: 71 | L24: 1402 | M24: 0 | N24: 2053 | O24: 24 | P24: =SUM(E24:O24) -> 12771 | Q24: 12258 | R24: =P24/Q24-1 -> 0.04185022026
C25: B) Annual premiums | E25: 0 | F25: 2150908.87 | G25: 558225 | H25: 5131476.49 | I25: 1882191.18 | J25: 6295004 | K25: 405899.327 | L25: 1341306.383 | M25: 877.04 | N25: 3127134.21 | O25: 2453000 | P25: =SUM(E25:O25) -> 23346022.5 | Q25: 19766810.3 | R25: =P25/Q25-1 -> 0.1810718139
C26: 3) Deaths and other insured events
C27: A) Number of contracts | E27: 0 | F27: 4 | G27: 1 | H27: 47 | I27: 11 | J27: 22 | K27: 0 | L27: 16 | M27: 4 | N27: 31 | O27: 1 | P27: =SUM(E27:O27) -> 137 | Q27: 167 | R27: =P27/Q27-1 -> -0.1796407186
C28: B) Annual premiums | E28: 0 | F28: 6884.16 | G28: 600 | H28: 136024.268 | I28: 17558.04 | J28: 27563 | K28: 0 | L28: 10292.84789 | M28: 25025.21 | N28: 34363.8 | O28: 0 | P28: =SUM(E28:O28) -> 258311.3259 | Q28: 474085.3434 | R28: =P28/Q28-1 -> -0.455137499
C29: 4) Maturities and Surrenders
C30: A) Number of contracts | E30: 53 | F30: 127 | G30: 150 | H30: 1841 | I30: 601 | J30: 1568 | K30: 55 | L30: 543 | M30: 35 | N30: 1235 | O30: 7 | P30: =SUM(E30:O30) -> 6215 | Q30: 6354 | R30: =P30/Q30-1 -> -0.02187598363
C31: B) Annual premiums | E31: -19928.14 | F31: 1464478.82 | G31: 221427 | H31: 2600700.89 | I31: 702965.5 | J31: 2013695 | K31: 71567.82125 | L31: 517535.3701 | M31: 20073.41 | N31: 1194762.23 | O31: 0 | P31: =SUM(E31:O31) -> 8787277.901 | Q31: 9949567.866 | R31: =P31/Q31-1 -> -0.1168181352
C32: 5) Lapses-Expiries Other reductions & alterations off
C33: A) Number of contracts | E33: 0 | F33: 407 | G33: 228 | H33: 1084 | I33: 457 | J33: 547 | K33: 5 | L33: 496 | M33: 11 | N33: 560 | O33: 0 | P33: =SUM(E33:O33) -> 3795 | Q33: 3810 | R33: =P33/Q33-1 -> -0.003937007874
C34: B) Annual premiums | E34: 0 | F34: 417396.5162 | G34: 210998 | H34: 390758.652 | I34: 371394.25 | J34: 1704011 | K34: 0 | L34: 355581.7156 | M34: 12962.57086 | N34: 1174878.97 | O34: 0 | P34: =SUM(E34:O34) -> 4637981.675 | Q34: 4685727.451 | R34: =P34/Q34-1 -> -0.01018961876
C35: 6) In force at end of period
C36: A) Number of contracts | E36: 785 | F36: 7686 | G36: 6434 | H36: 76021 | I36: 21211 | J36: 48194 | K36: 2307 | L36: 24012 | M36: 700 | N36: 37502 | O36: 346 | P36: =SUM(E36:O36) -> 225198 | Q36: 219344 | R36: =P36/Q36-1 -> 0.02668867168
C37: B) Annual premiums | E37: 242193.38 | F37: 10457239.42 | G37: 7324761 | H37: 77916335.56 | I37: 25834092.66 | J37: 74638179 | K37: 2544636.412 | L37: 21456996.97 | M37: 460018.8191 | N37: 40846724.32 | O37: 3154000 | P37: =SUM(E37:O37) -> 264875177.5 | Q37: 249124390.8 | R37: =P37/Q37-1 -> 0.06322458726
C39: 2) IN FORCE BUSINESS (GROUP):
C41: 1) In force at start of Period
C42: A) Number of policies | E42: 0 | F42: 50 | G42: 27 | H42: 64 | I42: 11 | J42: 149 | K42: 57 | L42: 435 | M42: 0 | N42: 83 | O42: 1300 | P42: =SUM(E42:O42) -> 2176 | Q42: 1314 | R42: =P42/Q42-1 -> 0.6560121766
C43: B) Annual premiums | E43: 0 | F43: 2418797.945 | G43: 471676 | H43: 7102533.28 | I43: 44861 | J43: 5990806 | K43: 8337604.37 | L43: 1121442.21 | M43: 0 | N43: 37576939.7 | O43: 9770280 | P43: =SUM(E43:O43) -> 72834940.51 | Q43: 28334585.58 | R43: =P43/Q43-1 -> 1.57053135
C44: 2) In force at end of report period
C45: A) Number of policies | E45: 0 | F45: 50 | G45: 27 | H45: 60 | I45: 8 | J45: 164 | K45: 57 | L45: 420 | M45: 0 | N45: 86 | O45: 1545 | P45: =SUM(E45:O45) -> 2417 | Q45: 1077 | R45: =P45/Q45-1 -> 1.244196843
C46: B) Annual premiums | E46: 0 | F46: 2377059.663 | G46: 284429 | H46: 6613036.26 | I46: 43699.97 | J46: 6240654 | K46: 7959073.83 | L46: 1049844.1 | M46: 0 | N46: 37746057.59 | O46: 1037000 | P46: =SUM(E46:O46) -> 63350854.41 | Q46: 67238101.94 | R46: =P46/Q46-1 -> -0.05781316571

Sheet L Technical Account
C6: FINANCIAL PERIOD (ΟΙΚΟΝΟΜΙΚΗ ΠΕΡΙΟΔΟΣ) : 01/01/18 - 30/06/18
C7: CURRENCY (ΝΟΜΙΣΜΑ) : EURO (ΕΥΡΩ)
C10: TECHNICAL ACCOUNTS LIFE BUSINESS (preliminary results, non audited)
C12: ΤΕΧΝΙΚΟΙ ΛΟΓΑΡΙΑΣΜΟΙ ΚΛΑΔΟΥ ΖΩΗΣ (προκαταρκτικά αποτελέσματα, μη ελεγμένα)
E14: Altius | F14: Ethniki | G14: Eurolife | H14: Prime | I14: Cyprialife | J14: Hellenic Alico | K14: Metlife | L14: Minerva | M14: Universal Life | N14: Ancoria | O14: Total Semi Annual 2018 | P14: Total Semi Annual 2017
C16: Premiums
C18: Gross Premiums | E18: 6554892.552 | F18: 4531824 | G18: 44610840.8 | H18: 13413564.27 | I18: 42871229 | J18: 6863124.85 | K18: 11324655.07 | L18: 217129 | M18: 62028117.44 | N18: 13963000 | O18: =SUM(E18:N18) -> 206378377 | P18: 187928824.9
C19: Reinsurance | E19: 1192631.255 | F19: 759894 | G19: 7843746.58 | H19: 1338075.9 | I19: 4868500 | J19: 1387461.5 | K19: 0 | L19: 35936 | M19: 27642943.96 | N19: 0 | O19: =SUM(E19:N19) -> 45069189.2 | P19: 55147916.29
C20: Net Premiums Earned | E20: 5362261.297 | F20: 3771930 | G20: 36767094.22 | H20: 12075488.37 | I20: 38002729 | J20: 5475663.35 | K20: 11324655.07 | L20: 181193 | M20: 34385173.48 | N20: 13963000 | O20: =SUM(E20:N20) -> 161309187.8 | P20: 132521990.6
C22: Claims
C24: Gross Claims incured | E24: 2857424.28 | F24: 1561767 | G24: 25177061.24 | H24: 2825059.46 | I24: 27862207 | J24: 1374817.8 | K24: 9454033.04 | L24: 1730845 | M24: 30728755.35 | N24: 1185000 | O24: =SUM(E24:N24) -> 104756970.2 | P24: 106176569.7
C25: Reinsurers' share of Claims | E25: 702336.2267 | F25: 452754 | G25: 2963820.3 | H25: 736640.27 | I25: 1805418 | J25: 1137591.03 | K25: -90701.34 | L25: 1107892 | M25: 12024295.93 | N25: 0 | O25: =SUM(E25:N25) -> 20840046.42 | P25: 29628033.61
C26: Net Claims Incurred | E26: 2155088.053 | F26: 1109013 | G26: 22213240.94 | H26: 2088419.19 | I26: 26056789 | J26: 237226.77 | K26: 9544734.38 | L26: 622953 | M26: 18704459.42 | N26: 1185000 | O26: =SUM(E26:N26) -> 83916923.75 | P26: 76548536.13
C28: Expenses
C30: Commissions - Acquisition | E30: 379307.7338 | F30: 377377 | G30: 3612724.29 | H30: 1864894.19 | I30: 2804479 | J30: 51194.04752 | K30: 628676.03 | L30: 0 | M30: 1593711.74 | N30: 0 | O30: =SUM(E30:N30) -> 11312364.03 | P30: 16074725.57
C31: Commissions - Renewal | E31: 332451.393 | F31: 246386 | G31: 1513783.16 | H31: 398934.22 | I31: 1654894 | J31: 689162.2425 | K31: 339095.79 | L31: 10264 | M31: 7452962.96 | N31: 0 | O31: =SUM(E31:N31) -> 12637933.77 | P31: 6125723.037
C32: Management expenses - Acquisition | E32: 780922.0663 | F32: 462620 | G32: 2350591.971 | H32: 708098.365 | I32: 2323836.45 | J32: 37957.04 | K32: 730519.2984 | L32: 0 | M32: 1345683.065 | N32: 132000 | O32: =SUM(E32:N32) -> 8872228.257 | P32: 8451261.424
C33: Management expenses - Renewal | E33: 450259.8891 | F33: 467270 | G33: 2530315.219 | H33: 1191875.443 | I33: 2840244.55 | J33: 791764.6979 | K33: 1214436.02 | L33: 41904 | M33: 1548259.011 | N33: 195000 | O33: =SUM(E33:N33) -> 11271328.83 | P33: 10484974.83
C34: Other Admin/Management Expenses | E34: 0 | F34: 0 | G34: 0 | H34: 0 | I34: 0 | J34: 0 | K34: 0 | L34: 0 | M34: 0 | N34: 0 | O34: =SUM(E34:N34) -> 0 | P34: 0
C36: Reinsurance Commission | E36: 132440.8999 | F36: 289774 | G36: 1235093.35 | H36: 0 | I36: 1351849 | J36: 0 | K36: -130378.86 | L36: 0 | M36: 316447.42 | N36: 0 | O36: =SUM(E36:N36) -> 3195225.81 | P36: 6765214.641
C38: Net Administration/Management Expenses and Commissions | E38: 1810500.182 | F38: 1263879 | G38: 8772321.29 | H38: 4163802.218 | I38: 8271605 | J38: 1570078.028 | K38: 3043105.999 | L38: 52168 | M38: 11624169.36 | N38: 327000 | O38: =SUM(E38:N38) -> 40898629.07 | P38: 34371470.22
C40: Investment Income
C42: Investment Income for Life business | E42: 389355.4752 | F42: 256876 | G42: 1954623.9 | H42: 236196.95 | I42: -616006.9 | J42: 68624.03934 | K42: 0 | L42: 60338 | M42: 337377.19 | N42: 185000 | O42: =SUM(E42:N42) -> 2872384.655 | P42: 4640953.967
C43: Increase (decrease) in value of Life assets other than those in internal linked funds * | E43: -75823.27 | F43: -63569 | G43: 116758.4498 | H43: n/a | I43: 576956.8 | J43: 0 | K43: 0 | L43: 0 | M43: -22434.24382 | N43: 69187.70315 | O43: =SUM(E43:N43) -> 601076.4391 | P43: 733409.8999
C44: Increase (decrease) in value of Life assets in internal linked funds | E44: 476331.44 | F44: -191053 | G44: -657374.4298 | H44: -50587.46 | I44: 888565.5 | J44: 416348.51 | K44: 0 | L44: 24960 | M44: -2491498 | N44: 2510505.826 | O44: =SUM(E44:N44) -> 926198.3866 | P44: 27730089.62
C47: Other Items
C49: Other Income | E49: 0 | F49: 611 | G49: 2239378.157 | H49: 0 | I49: 0 | J49: 0 | K49: 0 | L49: 0 | M49: 0 | N49: -49594.8 | O49: =SUM(E49:N49) -> 2190394.357 | P49: 819254.5135
C50: Other Expenditure | E50: -130.95 | F50: -3274 | G50: 0 | H50: 0 | I50: 0 | J50: 0 | K50: 0 | L50: 0 | M50: 0 | N50: 3055000 | O50: =SUM(E50:N50) -> 3051595.05 | P50: 430564.45
C52: Underwiting Profit
C54: Underwriting Profit (before tax) | E54: 401975.1652 | F54: 280093 | G54: 7355294.272 | H54: 664419.0191 | I54: 3100915 | J54: 2312813.73 | K54: 0 | L54: 5802 | M54: 414184.1463 | N54: 153000 | O54: =SUM(E54:N54) -> 14688496.33 | P54: 15384673.16
C55: Underwriting Profit (after tax) | E55: 401975.1652 | F55: 212115 | G55: 6660022.662 | H55: 463273.2791 | I55: 2213766 | J55: 1993026.38 | K55: 0 | L55: 2545.065 | M55: -518134.1453 | N55: 153000 | O55: =SUM(E55:N55) -> 11581589.41 | P55: 12714310.97
